fUST/lending_fUST_20250603
["ID","MTS","AMOUNT","RATE_DAILY","PERIOD"]
[363928283,1748933444927,-440.0,0.00016712,2]
[363928284,1748933444936,-440.0,0.00016712,2]
[363928285,1748933444946,-440.0,0.00016712,2]
[363928286,1748933444956,-440.0,0.00016712,2]
[363928287,1748933444965,-1422.91,0.00016712,2]
[363928288,1748933444976,-1957.17,0.00016712,2]
[363928289,1748933444986,-438.57942235,0.00016712,2]
[363928290,1748933444996,-440.0,0.00016712,2]
[363928291,1748933445005,-410.0,0.00016712,2]
[363928292,1748933445014,-440.0,0.00016712,2]
[363928293,1748933445025,-440.0,0.00016712,2]
[363928294,1748933445035,-440.0,0.00016712,2]
[363928295,1748933445044,-440.0,0.00016712,2]
[363928296,1748933445054,-440.0,0.00016712,2]
[363928297,1748933445063,-489.58,0.00016712,2]
[363928298,1748933445073,-440.0,0.00016712,2]
[363928299,1748933445083,-886.05,0.00016712,2]
[363928300,1748933445092,-440.0,0.00016712,2]
[363928301,1748933445102,-440.0,0.00016712,2]
[363928302,1748933445111,-440.0,0.00016712,2]
[363928303,1748933445121,-440.0,0.00016712,2]
[363928304,1748933445130,-440.0,0.00016712,2]
[363928305,1748933445140,-431.74485722,0.00016712,2]
[363928306,1748933445150,-440.0,0.00016712,2]
[363928307,1748933445160,-440.0,0.00016712,2]
[363928308,1748933445170,-440.0,0.00016712,2]
[363928309,1748933445180,-440.0,0.00016712,2]
[363928310,1748933445190,-440.0,0.00016712,2]
[363928311,1748933445200,-396.15250228,0.00016712,2]
[363928312,1748933445209,-440.0,0.00016712,2]
[363928313,1748933445219,-1471.23,0.00016712,2]
[363928314,1748933445228,-440.0,0.00016712,2]
[363928315,1748933445238,-440.0,0.00016712,2]
[363928316,1748933445248,-440.0,0.00016712,2]
[363928317,1748933445257,-654.81,0.00016712,2]
[363928318,1748933445267,-2390.55,0.00016712,2]
[363928319,1748933445277,-2074.06,0.00016712,2]
[363928320,1748933445286,-2284.02,0.00016712,2]
[363928321,1748933445296,-440.0,0.00016712,2]
[363928322,1748933445306,-420.0,0.00016712,2]
[363928323,1748933445318,-440.0,0.00016712,2]
[363928324,1748933445328,-2371.77,0.00016712,2]
[363928325,1748933445338,-440.0,0.00016712,2]
[363928326,1748933445348,-440.0,0.00016712,2]
[363928327,1748933445358,-521.81,0.00016712,2]
[363928328,1748933445368,-440.0,0.00016712,2]
[363928329,1748933445378,-468.91,0.00016712,2]
[363928330,1748933445388,-484.71,0.00016712,2]
[363928331,1748933445398,-420.0,0.00016712,2]
[363928332,1748933445408,-425.57863015,0.00016712,2]
[363928333,1748933445418,-421.91332634,0.00016712,2]
[363928334,1748933445428,-970.29,0.00016712,2]
[363928335,1748933445438,-420.0,0.00016712,2]
[363928336,1748933445448,-440.0,0.00016712,2]
[363928337,1748933445458,-233.95102304,0.00016712,2]
[363928338,1748933445468,-440.0,0.00016712,2]
[363928339,1748933445477,-440.0,0.00016712,2]
[363928340,1748933445487,-1039.91,0.00016712,2]
[363928341,1748933445497,-420.0,0.00016712,2]
[363928342,1748933445507,-440.0,0.00016712,2]
[363928343,1748933445516,-327.12464886,0.00016712,2]
[363928344,1748933445525,-940.37,0.00016712,2]
[363928345,1748933445535,-440.0,0.00016712,2]
[363928346,1748933445544,-440.0,0.00016712,2]
[363928347,1748933445554,-430.0,0.00016712,2]
[363928348,1748933445564,-440.0,0.00016712,2]
[363928349,1748933445574,-440.0,0.00016712,2]
[363928350,1748933445583,-440.0,0.00016712,2]
[363928351,1748933445593,-805.93,0.00016712,2]
[363928352,1748933445603,-440.0,0.00016712,2]
[363928353,1748933445613,-1096.13,0.00016712,2]
[363928354,1748933445622,-440.0,0.00016712,2]
[363928355,1748933445632,-440.0,0.00016712,2]
[363928356,1748933445642,-440.0,0.00016712,2]
[363928357,1748933445652,-440.0,0.00016712,2]
[363928358,1748933445661,-420.0,0.00016712,2]
[363928359,1748933445671,-440.0,0.00016712,2]
[363928360,1748933445680,-420.0,0.00016712,2]
[363928361,1748933445689,-473.43736884,0.00016712,2]
[363928362,1748933445699,-440.0,0.00016712,2]
[363928364,1748933445708,-440.0,0.00016712,2]
[363928366,1748933445718,-813.99,0.00016712,2]
[363928368,1748933445728,-470.23,0.00016712,2]
[363928370,1748933445737,-250.65982847,0.00016712,2]
[363928372,1748933445747,-420.0,0.00016712,2]
[363928374,1748933445756,-430.0,0.00016712,2]
[363928376,1748933445765,-440.0,0.00016712,2]
[363928377,1748933445775,-440.0,0.00016712,2]
[363928379,1748933445785,-440.0,0.00016712,2]
[363928381,1748933445794,-430.0,0.00016712,2]
[363928383,1748933445804,-500.0,0.00016876,2]
[363928385,1748933445814,-151.80961219,0.00016876,2]
[363928387,1748933445823,-2049.75681921,0.000169,2]
[363928389,1748933445832,-500.0,0.00016903,2]
[363928391,1748933445842,-500.0,0.00016931,2]
[363928393,1748933445851,-277.75440353,0.00016958,2]
[363928395,1748933445861,-133.55614139,0.00016985,2]
[363928411,1748933446010,-366.44385861,0.00016985,2]
[363928413,1748933446019,-500.0,0.00016985,2]
[363928415,1748933446029,-500.0,0.00016985,2]
[363928417,1748933446039,-1388.48,0.00016985,2]
[363928419,1748933446050,-440.0,0.00016986,2]
[363928421,1748933446059,-440.0,0.00016986,2]
[363928423,1748933446068,-440.0,0.00016986,2]
[363928425,1748933446078,-440.0,0.00016986,2]
[363928427,1748933446087,-440.0,0.00016986,2]
[363928429,1748933446096,-440.0,0.00016986,2]
[363928430,1748933446106,-440.0,0.00016986,2]
[363928432,1748933446115,-440.0,0.00016986,2]
[363928434,1748933446124,-440.0,0.00016986,2]
[363928443,1748933446244,-440.0,0.00016986,2]
[363928445,1748933446255,-440.0,0.00016986,2]
[363928446,1748933446266,-440.0,0.00016986,2]
[363928447,1748933446275,-440.0,0.00016986,2]
[363928448,1748933446285,-440.0,0.00016986,2]
[363928449,1748933446294,-440.0,0.00016986,2]
[363928450,1748933446304,-440.0,0.00016986,2]
[363928451,1748933446316,-440.0,0.00016986,2]
[363928452,1748933446326,-167.36,0.00016986,2]
[363928453,1748933446336,-172.73080363,0.00016986,2]
[363928454,1748933446346,-440.0,0.00016986,2]
[363928455,1748933446357,-400.0,0.00016986,2]
[363928456,1748933446367,-440.0,0.00016986,2]
[363928457,1748933446377,-440.0,0.00016986,2]
[363928458,1748933446387,-554.7,0.00016986,2]
[363928459,1748933446397,-440.0,0.00016986,2]
[363928460,1748933446407,-440.0,0.00016986,2]
[363928461,1748933446417,-420.5104587,0.00016986,2]
[363928462,1748933446427,-440.0,0.00016986,2]
[363928463,1748933446437,-440.0,0.00016986,2]
[363928464,1748933446446,-420.0,0.00016986,2]
[363928465,1748933446456,-440.0,0.00016986,2]
[363928466,1748933446465,-440.0,0.00016986,2]
[363928467,1748933446475,-410.0,0.00016986,2]
[363928468,1748933446484,-537.40076255,0.00016986,2]
[363928469,1748933446494,-440.0,0.00016986,2]
[363928470,1748933446503,-1422.91,0.00016986,2]
[363928471,1748933446513,-1957.17,0.00016986,2]
[363928472,1748933446523,-541.03,0.00016986,2]
[363928473,1748933446532,-587.57300131,0.00016986,2]
[363928474,1748933446542,-440.0,0.00016986,2]
[363928475,1748933446552,-440.0,0.00016986,2]
[363928476,1748933446562,-440.0,0.00016986,2]
[363928477,1748933446572,-440.0,0.00016986,2]
[363928478,1748933446581,-440.0,0.00016986,2]
[363928479,1748933446590,-886.05,0.00016986,2]
[363928480,1748933446600,-440.0,0.00016986,2]
[363928481,1748933446609,-440.0,0.00016986,2]
[363928482,1748933446619,-440.0,0.00016986,2]
[363928483,1748933446628,-410.0,0.00016986,2]
[363928484,1748933446637,-440.0,0.00016986,2]
[363928485,1748933446648,-440.0,0.00016986,2]
[363928486,1748933446658,-440.0,0.00016986,2]
[363928487,1748933446667,-440.0,0.00016986,2]
[363928488,1748933446677,-504.93,0.00016986,2]
[363928489,1748933446687,-440.0,0.00016986,2]
[363928490,1748933446696,-440.0,0.00016986,2]
[363928491,1748933446706,-1471.23,0.00016986,2]
[363928492,1748933446715,-440.0,0.00016986,2]
[363928493,1748933446724,-440.0,0.00016986,2]
[363928494,1748933446734,-430.52945816,0.00016986,2]
[363928495,1748933446743,-654.81,0.00016986,2]
[363928496,1748933446753,-2390.55,0.00016986,2]
[363928497,1748933446763,-2074.06,0.00016986,2]
[363928498,1748933446772,-2284.02,0.00016986,2]
[363928499,1748933446782,-455.01678467,0.00016986,2]
[363928500,1748933446791,-440.0,0.00016986,2]
[363928501,1748933446800,-2371.77,0.00016986,2]
[363928502,1748933446810,-440.0,0.00016986,2]
[363928503,1748933446819,-400.0,0.00016986,2]
[363928504,1748933446829,-521.81,0.00016986,2]
[363928505,1748933446838,-158.73,0.00016986,2]
[363928506,1748933446848,-468.91,0.00016986,2]
[363928507,1748933446857,-484.71,0.00016986,2]
[363928508,1748933446867,-970.29,0.00016986,2]
[363928509,1748933446876,-440.0,0.00016986,2]
[363928510,1748933446885,-440.0,0.00016986,2]
[363928511,1748933446895,-440.0,0.00016986,2]
[363928512,1748933446904,-1039.91,0.00016986,2]
[363928513,1748933446914,-440.0,0.00016986,2]
[363928514,1748933446923,-940.37,0.00016986,2]
[363928515,1748933446932,-440.0,0.00016986,2]
[363928516,1748933446942,-440.0,0.00016986,2]
[363928517,1748933446951,-440.0,0.00016986,2]
[363928518,1748933446961,-440.0,0.00016986,2]
[363928519,1748933446970,-440.0,0.00016986,2]
[363928520,1748933446979,-805.93,0.00016986,2]
[363928521,1748933446988,-440.0,0.00016986,2]
[363928522,1748933446998,-1096.13,0.00016986,2]
[363928523,1748933447007,-440.0,0.00016986,2]
[363928524,1748933447018,-440.0,0.00016986,2]
[363928525,1748933447028,-266.45466304,0.00016986,2]
[363928526,1748933447037,-440.0,0.00016986,2]
[363928527,1748933447046,-440.0,0.00016986,2]
[363928528,1748933447056,-440.0,0.00016986,2]
[363928529,1748933447066,-440.0,0.00016986,2]
[363928530,1748933447075,-813.99,0.00016986,2]
[363928531,1748933447085,-470.23,0.00016986,2]
[363928532,1748933447094,-440.0,0.00016986,2]
[363928533,1748933447104,-440.0,0.00016986,2]
[363928534,1748933447114,-440.0,0.00016986,2]
[363928535,1748933447123,-500.0,0.00017035,2]
[363928536,1748933447133,-501.11559569,0.0001705,2]
[363928537,1748933447143,-500.0,0.0001705,2]
[363928538,1748933447152,-500.0,0.00017063,2]
[363928539,1748933447162,-500.0,0.00017067,2]
[363928540,1748933447171,-500.0,0.00017067,2]
[363928541,1748933447181,-500.0,0.00017067,2]
[363928542,1748933447190,-500.0,0.0001709,2]
[363928543,1748933447199,-500.0,0.0001709,2]
[363928544,1748933447209,-502.91607213,0.0001709,2]
[363928545,1748933447218,-500.0,0.0001709,2]
[363928546,1748933447228,-544.70077891,0.00017115,2]
[363928547,1748933447238,-500.0,0.00017127,2]
[363928548,1748933447247,-500.0,0.00017127,2]
[363928549,1748933447257,-500.0,0.00017127,2]
[363928550,1748933447266,-500.0,0.00017141,2]
[363928551,1748933447276,-2049.75681905,0.00017141,2]
[363928552,1748933447286,-500.0,0.00017159,2]
[363928553,1748933447295,-509.51775153,0.00017159,2]
[363928554,1748933447305,-500.0,0.00017172,2]
[363928555,1748933447316,-500.0,0.00017172,2]
[363928556,1748933447326,-500.0,0.00017172,2]
[363928557,1748933447336,-500.0,0.00017172,2]
[363928558,1748933447346,-502.34771245,0.00017172,2]
[363928559,1748933447356,-507.80432617,0.00017233,2]
[363928560,1748933447366,-506.73672877,0.00017233,2]
[363928561,1748933447376,-500.0,0.00017233,2]
[363928562,1748933447386,-500.0,0.00017259,2]
[363928563,1748933447396,-500.0,0.00017259,2]
[363928564,1748933447406,-500.0,0.00017259,2]
[363928565,1748933447416,-1388.48,0.00017259,2]
[363928566,1748933447426,-226.26,0.0001726,2]
[363928567,1748933447436,-440.0,0.0001726,2]
[363928568,1748933447446,-440.0,0.0001726,2]
[363928569,1748933447456,-440.0,0.0001726,2]
[363928570,1748933447466,-458.93,0.0001726,2]
[363928571,1748933447476,-440.0,0.0001726,2]
[363928572,1748933447486,-440.0,0.0001726,2]
[363928573,1748933447496,-400.0,0.0001726,2]
[363928574,1748933447505,-440.0,0.0001726,2]
[363928575,1748933447515,-440.0,0.0001726,2]
[363928576,1748933447525,-544.52,0.0001726,2]
[363928577,1748933447535,-440.0,0.0001726,2]
[363928578,1748933447545,-440.0,0.0001726,2]
[363928579,1748933447556,-287.67,0.0001726,2]
[363928580,1748933447566,-440.0,0.0001726,2]
[363928581,1748933447575,-400.0,0.0001726,2]
[363928582,1748933447585,-440.0,0.0001726,2]
[363928583,1748933447595,-440.0,0.0001726,2]
[363928584,1748933447604,-437.0,0.0001726,2]
[363928585,1748933447614,-420.0,0.0001726,2]
[363928586,1748933447623,-554.7,0.0001726,2]
[363928587,1748933447633,-440.0,0.0001726,2]
[363928588,1748933447643,-440.0,0.0001726,2]
[363928589,1748933447652,-509.91,0.0001726,2]
[363928590,1748933447661,-440.0,0.0001726,2]
[363928591,1748933447671,-440.0,0.0001726,2]
[363928592,1748933447680,-440.0,0.0001726,2]
[363928593,1748933447690,-440.0,0.0001726,2]
[363928594,1748933447699,-1422.91,0.0001726,2]
[363928595,1748933447709,-1957.17,0.0001726,2]
[363928596,1748933447718,-440.0,0.0001726,2]
[363928597,1748933447727,-494.32630807,0.0001726,2]
[363928598,1748933447736,-440.0,0.0001726,2]
[363928599,1748933447745,-440.0,0.0001726,2]
[363928600,1748933447755,-440.0,0.0001726,2]
[363928601,1748933447765,-886.05,0.0001726,2]
[363928602,1748933447774,-440.0,0.0001726,2]
[363928603,1748933447784,-440.0,0.0001726,2]
[363928604,1748933447794,-252.78637685,0.0001726,2]
[363928605,1748933447803,-400.0,0.0001726,2]
[363928606,1748933447812,-440.0,0.0001726,2]
[363928607,1748933447821,-440.0,0.0001726,2]
[363928608,1748933447832,-440.0,0.0001726,2]
[363928609,1748933447841,-440.0,0.0001726,2]
[363928610,1748933447851,-440.0,0.0001726,2]
[363928611,1748933447860,-1471.23,0.0001726,2]
[363928612,1748933447869,-440.0,0.0001726,2]
[363928613,1748933447879,-440.0,0.0001726,2]
[363928614,1748933447889,-654.81,0.0001726,2]
[363928615,1748933447898,-2390.55,0.0001726,2]
[363928616,1748933447908,-2074.06,0.0001726,2]
[363928617,1748933447918,-2284.02,0.0001726,2]
[363928618,1748933447927,-440.0,0.0001726,2]
[363928619,1748933447937,-2371.77,0.0001726,2]
[363928620,1748933447947,-440.0,0.0001726,2]
[363928621,1748933447956,-521.81,0.0001726,2]
[363928622,1748933447966,-468.91,0.0001726,2]
[363928623,1748933447975,-484.71,0.0001726,2]
[363928624,1748933447985,-970.29,0.0001726,2]
[363928625,1748933447994,-440.0,0.0001726,2]
[363928626,1748933448003,-440.0,0.0001726,2]
[363928627,1748933448013,-440.0,0.0001726,2]
[363928628,1748933448022,-1039.91,0.0001726,2]
[363928629,1748933448031,-440.0,0.0001726,2]
[363928630,1748933448041,-940.37,0.0001726,2]
[363928631,1748933448050,-440.0,0.0001726,2]
[363928632,1748933448059,-440.0,0.0001726,2]
[363928633,1748933448070,-380.0,0.0001726,2]
[363928634,1748933448079,-440.0,0.0001726,2]
[363928635,1748933448089,-440.0,0.0001726,2]
[363928636,1748933448099,-805.93,0.0001726,2]
[363928637,1748933448108,-180.29176856,0.0001726,2]
[363928638,1748933448118,-1096.13,0.0001726,2]
[363928639,1748933448128,-399.26708582,0.0001726,2]
[363928640,1748933448137,-440.0,0.0001726,2]
[363928641,1748933448146,-232.44,0.0001726,2]
[363928642,1748933448156,-440.0,0.0001726,2]
[363928643,1748933448165,-440.0,0.0001726,2]
[363928644,1748933448175,-440.0,0.0001726,2]
[363928645,1748933448184,-813.99,0.0001726,2]
[363928646,1748933448195,-470.23,0.0001726,2]
[363928647,1748933448204,-440.0,0.0001726,2]
[363928648,1748933448214,-329.68876216,0.0001726,2]
[363928649,1748933448224,-440.0,0.0001726,2]
[363928650,1748933448233,-2049.75681905,0.00017383,2]
[363928651,1748933448243,-4520.66680072,0.00017433,2]
[363928652,1748933448253,-500.0,0.00017533,2]
[363928653,1748933448263,-500.0,0.00017533,2]
[363928654,1748933448272,-1388.48,0.00017533,2]
[363928655,1748933448287,-350.0,0.00017534,2]
[363928656,1748933448297,-440.0,0.00017534,2]
[363928657,1748933448306,-440.0,0.00017534,2]
[363928658,1748933448319,-440.0,0.00017534,2]
[363928659,1748933448329,-546.31,0.00017534,2]
[363928660,1748933448339,-440.0,0.00017534,2]
[363928661,1748933448349,-251.70334929,0.00017534,2]
[363928662,1748933448359,-440.0,0.00017534,2]
[363928663,1748933448369,-440.0,0.00017534,2]
[363928664,1748933448379,-440.0,0.00017534,2]
[363928665,1748933448391,-440.0,0.00017534,2]
[363928666,1748933448401,-295.55,0.00017534,2]
[363928667,1748933448410,-554.7,0.00017534,2]
[363928668,1748933448420,-440.0,0.00017534,2]
[363928669,1748933448430,-440.0,0.00017534,2]
[363928670,1748933448440,-420.0,0.00017534,2]
[363928671,1748933448449,-440.0,0.00017534,2]
[363928672,1748933448459,-282.68,0.00017534,2]
[363928673,1748933448468,-546.87,0.00017534,2]
[363928674,1748933448478,-1422.91,0.00017534,2]
[363928675,1748933448489,-1957.17,0.00017534,2]
[363928676,1748933448499,-440.0,0.00017534,2]
[363928677,1748933448508,-440.0,0.00017534,2]
[363928678,1748933448518,-179.18,0.00017534,2]
[363928679,1748933448528,-440.0,0.00017534,2]
[363928680,1748933448539,-886.05,0.00017534,2]
[363928681,1748933448549,-440.0,0.00017534,2]
[363928682,1748933448559,-440.0,0.00017534,2]
[363928683,1748933448569,-440.0,0.00017534,2]
[363928684,1748933448579,-440.0,0.00017534,2]
[363928685,1748933448589,-440.0,0.00017534,2]
[363928686,1748933448599,-440.0,0.00017534,2]
[363928687,1748933448609,-440.0,0.00017534,2]
[363928688,1748933448618,-1471.23,0.00017534,2]
[363928689,1748933448628,-437.8,0.00017534,2]
[363928690,1748933448638,-440.0,0.00017534,2]
[363928691,1748933448648,-654.81,0.00017534,2]
[363928692,1748933448657,-2390.55,0.00017534,2]
[363928693,1748933448667,-2074.06,0.00017534,2]
[363928694,1748933448790,-2284.02,0.00017534,2]
[363928695,1748933448801,-440.0,0.00017534,2]
[363928696,1748933448811,-2371.77,0.00017534,2]
[363928697,1748933448821,-150.42,0.00017534,2]
[363928698,1748933448831,-521.81,0.00017534,2]
[363928699,1748933448840,-468.91,0.00017534,2]
[363928700,1748933448850,-484.71,0.00017534,2]
[363928701,1748933448859,-970.29,0.00017534,2]
[363928702,1748933448869,-440.0,0.00017534,2]
[363928703,1748933448879,-440.0,0.00017534,2]
[363928704,1748933448890,-440.0,0.00017534,2]
[363928705,1748933448900,-1039.91,0.00017534,2]
[363928706,1748933448910,-440.0,0.00017534,2]
[363928707,1748933448919,-940.37,0.00017534,2]
[363928708,1748933448929,-440.0,0.00017534,2]
[363928709,1748933448939,-440.0,0.00017534,2]
[363928710,1748933448949,-374.26369834,0.00017534,2]
[363928711,1748933448959,-440.0,0.00017534,2]
[363928712,1748933448968,-805.93,0.00017534,2]
[363928713,1748933448978,-1096.13,0.00017534,2]
[363928714,1748933448988,-440.0,0.00017534,2]
[363928715,1748933448997,-440.0,0.00017534,2]
[363928716,1748933449007,-440.0,0.00017534,2]
[363928717,1748933449017,-440.0,0.00017534,2]
[363928718,1748933449027,-813.99,0.00017534,2]
[363928719,1748933449037,-470.23,0.00017534,2]
[363928720,1748933449047,-440.0,0.00017534,2]
[363928721,1748933449056,-440.0,0.00017534,2]
[363928722,1748933449066,-522.35728032,0.00017611,2]
[363928723,1748933449076,-1000.0,0.00017615,2]
[363928724,1748933449086,-1000.0,0.00017615,2]
[363928725,1748933449095,-788.63107863,0.00017615,2]
[363928726,1748933449106,-2049.75681905,0.00017624,2]
[363928727,1748933449116,-1000.0,0.00017638,2]
[363928728,1748933449126,-510.89426034,0.00017638,2]
[363928729,1748933449136,-1004.90978063,0.00017675,2]
[363928730,1748933449147,-1000.0,0.00017707,2]
[363928731,1748933449157,-1012.15365815,0.0001772,2]
[363928732,1748933449167,-193.77934823,0.0001772,2]
[363928733,1748933449177,-1000.0,0.0001772,2]
[363928734,1748933449187,-497.0453112,0.00017781,2]
[363928735,1748933449197,-805.86,0.00017798,3]
[363928736,1748933449207,-402.94,0.00017798,3]
[363928737,1748933449217,-336.4440577,0.00017807,2]
[363928738,1748933449227,-500.0,0.00017807,2]
[363928739,1748933449237,-1388.48,0.00017807,2]
[363928740,1748933449247,-440.0,0.00017808,2]
[363928741,1748933449257,-440.0,0.00017808,2]
[363928742,1748933449267,-440.0,0.00017808,2]
[363928743,1748933449278,-440.0,0.00017808,2]
[363928744,1748933449288,-440.0,0.00017808,2]
[363928745,1748933449298,-440.0,0.00017808,2]
[363928746,1748933449308,-407.29,0.00017808,2]
[363928747,1748933449321,-440.0,0.00017808,2]
[363928748,1748933449331,-554.7,0.00017808,2]
[363928749,1748933449341,-440.0,0.00017808,2]
[363928750,1748933449362,-440.0,0.00017808,2]
[363928751,1748933449386,-414.95509405,0.00017808,2]
[363928752,1748933449416,-1422.91,0.00017808,2]
[363928753,1748933449439,-1957.17,0.00017808,2]
[363928754,1748933449467,-440.0,0.00017808,2]
[363928755,1748933449499,-440.0,0.00017808,2]
[363928756,1748933449537,-440.0,0.00017808,2]
[363928757,1748933449557,-886.05,0.00017808,2]
[363928758,1748933449567,-440.0,0.00017808,2]
[363928759,1748933449578,-380.0,0.00017808,2]
[363928760,1748933449588,-440.0,0.00017808,2]
[363928761,1748933449598,-440.0,0.00017808,2]
[363928762,1748933449609,-440.0,0.00017808,2]
[363928763,1748933449619,-440.0,0.00017808,2]
[363928764,1748933449629,-440.0,0.00017808,2]
[363928765,1748933449640,-1471.23,0.00017808,2]
[363928766,1748933449650,-440.0,0.00017808,2]
[363928767,1748933449660,-654.81,0.00017808,2]
[363928768,1748933449670,-2390.55,0.00017808,2]
[363928769,1748933449680,-2074.06,0.00017808,2]
[363928770,1748933449691,-151.0,0.00017808,2]
[363928771,1748933449701,-2284.02,0.00017808,2]
[363928772,1748933449711,-440.0,0.00017808,2]
[363928773,1748933449721,-2371.77,0.00017808,2]
[363928774,1748933449731,-151.0,0.00017808,2]
[363928775,1748933449740,-521.81,0.00017808,2]
[363928776,1748933449750,-468.91,0.00017808,2]
[363928777,1748933449760,-484.71,0.00017808,2]
[363928778,1748933449770,-970.29,0.00017808,2]
[363928779,1748933449779,-440.0,0.00017808,2]
[363928780,1748933449789,-173.25,0.00017808,2]
[363928781,1748933449799,-440.0,0.00017808,2]
[363928782,1748933449809,-1039.91,0.00017808,2]
[363928783,1748933449818,-440.0,0.00017808,2]
[363928784,1748933449828,-940.37,0.00017808,2]
[363928785,1748933449837,-440.0,0.00017808,2]
[363928786,1748933449847,-440.0,0.00017808,2]
[363928787,1748933449857,-440.0,0.00017808,2]
[363928788,1748933449866,-805.93,0.00017808,2]
[363928789,1748933449876,-1096.13,0.00017808,2]
[363928790,1748933449885,-440.0,0.00017808,2]
[363928791,1748933449896,-440.0,0.00017808,2]
[363928792,1748933449906,-440.0,0.00017808,2]
[363928793,1748933449915,-440.0,0.00017808,2]
[363928794,1748933449925,-813.99,0.00017808,2]
[363928795,1748933449935,-470.23,0.00017808,2]
[363928796,1748933449946,-440.0,0.00017808,2]
[363928797,1748933449955,-402.73058149,0.00017808,2]
[363928798,1748933449965,-2049.75681905,0.00017866,2]
[363928799,1748933449975,-420.0,0.00017957,2]
[363928800,1748933449984,-208.6,0.00018,2]
[363928801,1748933449995,-296.40932798,0.00018004,2]
[363928802,1748933450004,-1388.48,0.00018004,2]
[363928803,1748933450014,-1680.0,0.00018047,2]
[363928804,1748933450024,-160.0,0.00018072,2]
[363928805,1748933450034,-842.5625,0.00018072,2]
[363928806,1748933450043,-160.0,0.00018072,2]
[363928807,1748933450053,-423.63107087,0.00018072,2]
[363928808,1748933450063,-160.0,0.00018072,2]
[363928809,1748933450073,-160.0,0.00018072,2]
[363928810,1748933450082,-160.0,0.00018072,2]
[363928811,1748933450092,-160.0,0.00018072,2]
[363928812,1748933450102,-229.42821335,0.00018072,2]
[363928813,1748933450111,-212.86879254,0.00018072,2]
[363928814,1748933450122,-12670.76136593,0.00018073,2]
[363928815,1748933450131,-1388.48,0.0001808,2]
[363928816,1748933450141,-1000.0,0.00018081,7]
[363928817,1748933450151,-1000.0,0.00018081,7]
[363928818,1748933450161,-1000.0,0.00018081,7]
[363928819,1748933450170,-1000.0,0.00018081,7]
[363928820,1748933450179,-1000.0,0.00018081,2]
[363928821,1748933450190,-1000.0,0.00018081,2]
[363928822,1748933450199,-1000.0,0.00018081,2]
[363928823,1748933450210,-440.0,0.00018082,2]
[363928824,1748933450220,-440.0,0.00018082,2]
[363928825,1748933450229,-440.0,0.00018082,2]
[363928826,1748933450239,-440.0,0.00018082,2]
[363928827,1748933450249,-440.0,0.00018082,2]
[363928828,1748933450259,-440.0,0.00018082,2]
[363928829,1748933450268,-151.0,0.00018082,2]
[363928830,1748933450277,-440.0,0.00018082,2]
[363928831,1748933450287,-554.7,0.00018082,2]
[363928832,1748933450296,-473.9113173,0.00018082,2]
[363928833,1748933450306,-440.0,0.00018082,2]